bitfinex/quotes_SOLUSD_20240818
["timestamp","ask_amount","ask_price","bid_price","bid_amount"]
[1724012422655,16.5343,146.89,146.83,8.77]
[1724012422885,7.42533964,146.88,146.83,8.77]
[1724012423079,16.5343,146.89,146.83,8.77]
[1724012423380,7.42560859,146.88,146.83,8.77]
[1724012423704,16.5343,146.89,146.83,8.77]
[1724012423983,52.42558979,146.88,146.83,8.77]
[1724012424181,45.0,146.88,146.83,8.77]
[1724012426560,7.42559199,146.87,146.83,8.77]
[1724012426863,45.0,146.88,146.83,8.77]
[1724012427059,7.4255942,146.87,146.83,8.77]
[1724012427271,45.0,146.88,146.83,8.77]
[1724012427564,7.4255942,146.87,146.83,8.77]
[1724012427764,45.0,146.88,146.83,8.77]
[1724012428110,7.42559199,146.87,146.83,8.77]
[1724012428275,45.0,146.88,146.83,8.77]
[1724012428480,7.42559199,146.87,146.83,8.77]
[1724012428786,45.0,146.88,146.83,8.77]
[1724012428974,7.42564041,146.87,146.83,8.77]
[1724012429176,45.0,146.88,146.83,8.77]
[1724012429362,7.42564041,146.87,146.83,8.77]
[1724012429567,45.0,146.88,146.83,8.77]
[1724012429780,7.425592,146.87,146.83,8.77]
[1724012429973,45.0,146.88,146.83,8.77]
[1724012430180,7.4255942,146.87,146.83,8.77]
[1724012430381,7.4255942,146.87,146.82,20.0]
[1724012430382,51.8084,146.88,146.82,20.0]
[1724012430568,16.19603014,146.87,146.79,8.77]
[1724012430776,16.1534,146.84,146.75,16.6656]
[1724012431077,67.49953014,146.83,146.74,8.77]
[1724012431275,67.49953014,146.83,146.71,6.0566]
[1724012431276,8.77,146.81,146.72,8.77]
[1724012431480,52.42603014,146.8,146.71,6.0566]
[1724012431681,16.19603014,146.79,146.7,16.6656]
[1724012431882,16.19603014,146.79,146.67,6.0566]
[1724012431883,68.57943014,146.78,146.69,8.77]
[1724012432098,7.42603014,146.77,146.69,8.77]
[1724012432275,61.1534,146.78,146.69,8.77]
[1724012432276,45.0,146.76,146.69,8.77]
[1724012432810,16.1534,146.78,146.71,8.77]
[1724012433014,45.0,146.77,146.71,8.77]
[1724012433536,45.0,146.77,146.67,6.0566]
[1724012433706,45.0,146.77,146.71,8.77]
[1724012434099,45.0,146.77,146.73,8.77]
[1724012435432,16.1534,146.78,146.73,8.77]
[1724012437105,15.0735,146.77,146.66,16.6656]
[1724012437308,45.0,146.76,146.67,8.77]
[1724012438818,45.0,146.76,146.69,8.77]
[1724012439339,45.0,146.76,146.71,8.77]
[1724012439549,16.1534,146.78,146.73,8.77]
[1724012440043,16.1534,146.78,146.71,8.77]
[1724012440224,45.0,146.77,146.72,20.0]
[1724012440771,45.0,146.77,146.7,20.0]
[1724012443931,45.0,146.77,146.67,21.89]
[1724012443932,45.0,146.77,146.68,20.0]
[1724012444334,45.0,146.77,146.67,20.0]
[1724012446150,52.12022228,146.77,146.67,20.0]
[1724012446450,6.4879,146.76,146.67,20.0]
[1724012446666,45.0,146.75,146.65,21.89]
[1724012447918,45.0,146.75,146.66,20.0]
[1724012450215,45.0,146.75,146.66,21.89]
[1724012450848,45.0,146.75,146.67,20.0]
[1724012451841,45.0,146.75,146.65,41.89]
[1724012454852,45.0,146.75,146.65,20.0]
[1724012455069,45.0,146.75,146.65,41.89]
[1724012456257,16.064,146.74,146.65,41.89]
[1724012456537,45.0,146.73,146.65,41.89]
[1724012458970,16.064,146.74,146.69,21.89]
[1724012459187,16.064,146.74,146.7,20.0]
[1724012460541,16.064,146.74,146.7,28.75]
[1724012460762,16.064,146.74,146.71,20.0]
[1724012461975,16.064,146.74,146.68,8.75]
[1724012462275,45.0,146.73,146.68,8.75]
[1724012462801,45.0,146.73,146.66,8.75]
[1724012464166,45.0,146.73,146.67,20.0]
[1724012467069,45.0,146.73,146.66,8.75]
[1724012468266,45.0,146.73,146.62,15.3364]
[1724012468267,6.5775,146.72,146.62,15.3364]
[1724012468472,45.0,146.71,146.65,8.75]
[1724012468675,45.0,146.71,146.66,20.0]
[1724012468874,45.0,146.71,146.63,8.75]
[1724012468875,15.2446,146.7,146.63,8.75]
[1724012469186,15.2446,146.7,146.61,8.75]
[1724012469187,53.75,146.69,146.61,8.75]
[1724012469393,6.5775,146.68,146.61,8.75]
[1724012469594,45.0,146.67,146.61,8.75]
[1724012470692,45.0,146.67,146.62,20.0]
[1724012471301,15.2446,146.66,146.62,20.0]
[1724012471507,45.0,146.65,146.62,20.0]
[1724012471673,45.0,146.65,146.61,8.75]
[1724012471982,45.0,146.65,146.62,20.0]
[1724012472373,45.0,146.65,146.52,7.98166086]
[1724012472577,45.0,146.65,146.59,8.75]
[1724012472806,45.0,146.65,146.6,20.0]
[1724012473926,45.0,146.65,146.59,8.75]
[1724012475206,45.0,146.65,146.53,6.5224]
[1724012475510,6.5775,146.64,146.59,8.75]
[1724012475805,45.0,146.63,146.56,8.75]
[1724012476009,45.0,146.63,146.58,8.75]
[1724012476309,45.0,146.63,146.56,8.7430065]
[1724012476522,45.0,146.63,146.59,8.75]
[1724012480317,45.0,146.63,146.59,8.25]
[1724012481026,6.5775,146.64,146.59,8.25]
[1724012481424,6.5775,146.64,146.6,20.0]
[1724012482231,45.0,146.63,146.6,20.0]
[1724012483029,6.5775,146.64,146.6,28.75]
[1724012483589,15.2446,146.66,146.62,8.75]
[1724012483809,15.2446,146.66,146.64,8.75]
[1724012484301,15.2446,146.66,146.6,20.0]
[1724012484531,15.2446,146.66,146.63,8.75]
[1724012484819,15.8021,146.7,146.65,8.75]
[1724012486011,15.8021,146.7,146.67,8.75]
[1724012490927,6.3133,146.72,146.67,8.75]
[1724012491126,45.0,146.71,146.67,8.75]
[1724012507648,45.0,146.71,146.62,16.0294]
[1724012507904,45.0,146.71,146.58,15.7068]
[1724012507905,8.75,146.69,146.58,15.7068]
[1724012508025,45.0,146.68,146.61,8.75]
[1724012509244,15.1273,146.67,146.57,6.1096]
[1724012509451,15.1273,146.67,146.53,7.12369093]
[1724012509452,45.0,146.66,146.58,8.75]
[1724012510931,45.0,146.66,146.59,20.0]
[1724012511957,45.0,146.66,146.6,8.75]
[1724012512863,45.0,146.66,146.62,8.75]
[1724012513560,6.3773,146.67,146.62,8.75]
[1724012514654,6.3773,146.67,146.61,8.75]
[1724012514862,45.0,146.66,146.61,8.75]
[1724012517263,45.0,146.66,146.59,20.0]
[1724012517447,45.0,146.66,146.61,8.75]
[1724012519451,45.0,146.66,146.59,8.75]
[1724012519681,45.0,146.66,146.6,20.0]
[1724012521754,45.0,146.66,146.61,8.75]
[1724012522676,6.3773,146.67,146.61,8.75]
[1724012522855,6.3773,146.67,146.63,8.75]
[1724012523070,6.3773,146.67,146.61,8.75]
[1724012524154,45.0,146.66,146.61,8.75]
[1724012524479,45.0,146.66,146.63,8.75]
[1724012526771,6.1668,146.71,146.65,8.75]
[1724012526956,6.1668,146.71,146.6,35.3101]
[1724012526957,6.1668,146.71,146.67,8.75]
[1724012527156,6.1668,146.71,146.65,8.75]
[1724012528768,45.0,146.7,146.65,8.75]
[1724012530882,45.0,146.7,146.6,35.3101]
[1724012531071,53.75,146.7,146.61,8.75]
[1724012531376,8.75,146.68,146.59,8.75]
[1724012531577,45.0,146.67,146.59,8.75]
[1724012532891,45.0,146.67,146.6,20.0]
[1724012533085,45.0,146.67,146.61,8.75]
[1724012533278,45.0,146.68,146.61,8.75]
[1724012535082,29.5912,146.67,146.49,15.3101]
[1724012535290,79.73614211,146.66,146.54,8.75]
[1724012535498,8.75,146.64,146.54,8.75]
[1724012535665,45.0,146.63,146.54,8.75]
[1724012536560,45.0,146.63,146.54,21.93]
[1724012536798,45.0,146.63,146.55,20.0]
[1724012536979,45.0,146.63,146.54,21.93]
[1724012537463,52.12603429,146.63,146.54,21.93]
[1724012538398,52.12603429,146.63,146.55,20.0]
[1724012538971,22.7637,146.62,146.55,20.0]
[1724012539299,45.0,146.61,146.55,20.0]
[1724012539604,45.0,146.61,146.53,20.0]
[1724012542711,45.0,146.61,146.54,21.93]
[1724012542921,45.0,146.61,146.55,20.0]
[1724012548992,45.0,146.61,146.54,21.93]
[1724012549210,45.0,146.61,146.55,20.0]
[1724012558541,45.0,146.61,146.56,8.77]
[1724012572272,45.0,146.61,146.58,8.77]
[1724012574990,22.7637,146.62,146.55,20.0]
[1724012575301,22.7637,146.62,146.59,8.77]
[1724012576034,16.1754,146.62,146.59,8.77]
[1724012576842,7.11969615,146.65,146.61,8.77]
[1724012577060,22.1368,146.66,146.63,8.77]
[1724012577967,22.1368,146.66,146.65,8.77]
[1724012578144,22.1368,146.7,146.65,43.85]
[1724012578342,22.1368,146.7,146.69,8.77]
[1724012580567,15.6062,146.7,146.69,8.77]
[1724012581443,22.1369,146.73,146.69,8.77]
[1724012581660,22.1369,146.73,146.65,35.08]
[1724012581880,22.1369,146.73,146.7,8.77]
[1724012582783,7.12049315,146.77,146.72,8.77]
[1724012584050,15.6471,146.79,146.72,8.77]
[1724012584474,22.76614536,146.79,146.74,8.77]
[1724012585973,15.6471,146.79,146.72,35.08]
[1724012586268,15.6471,146.79,146.75,8.77]
[1724012591670,45.0,146.78,146.75,8.77]
[1724012592560,45.0,146.78,146.67,6.0247]
[1724012592763,45.0,146.78,146.74,8.77]
[1724012599466,45.0,146.78,146.69,15.9287]
[1724012599665,45.0,146.78,146.7,20.0]
[1724012599873,45.0,146.78,146.73,8.77]
[1724012601570,45.0,146.78,146.75,8.77]
[1724012608377,15.6471,146.79,146.77,8.77]
[1724012610294,15.7992,146.83,146.77,8.77]
[1724012610595,15.7992,146.83,146.81,8.77]
[1724012610990,6.3835,146.84,146.81,8.77]
[1724012611197,15.7992,146.87,146.79,8.77]
[1724012611198,15.7992,146.87,146.83,8.77]
[1724012611378,15.7992,146.87,146.86,8.77]
[1724012611771,29.29530061,146.92,146.86,8.77]
[1724012612238,29.29530061,146.92,146.88,8.77]
[1724012612415,22.1827,146.92,146.81,17.17317399]
[1724012612700,22.1827,146.92,146.88,8.77]
[1724012615605,45.0,146.91,146.88,8.77]
[1724012615913,45.0,146.91,146.82,20.0]
[1724012616069,45.0,146.91,146.86,8.77]
[1724012616273,45.0,146.91,146.82,20.0]
[1724012616519,45.0,146.91,146.84,8.77]
[1724012616676,6.8077,146.9,146.82,8.77]
[1724012616889,45.0,146.89,146.82,8.77]
[1724012617216,6.8083,146.88,146.78,15.8115]
[1724012617390,15.7992,146.86,146.81,8.77]
[1724012617697,45.0,146.85,146.78,8.77]
[1724012618735,45.0,146.85,146.79,20.0]
[1724012618878,45.0,146.85,146.78,20.0]
[1724012620288,45.0,146.85,146.79,21.86]
[1724012620792,45.0,146.85,146.78,20.0]
[1724012621177,45.0,146.85,146.81,21.86]
[1724012621378,22.1827,146.86,146.81,21.86]
[1724012621726,15.7992,146.86,146.83,21.86]
[1724012622106,6.4127,146.9,146.83,21.86]
[1724012622107,22.7494,146.9,146.83,21.86]
[1724012623688,22.7494,146.9,146.81,21.86]
[1724012623883,6.8081,146.89,146.79,21.86]
[1724012624075,45.0,146.88,146.8,20.0]
[1724012625093,6.8087,146.87,146.8,20.0]
[1724012625280,45.0,146.86,146.8,20.0]
[1724012625682,45.0,146.87,146.8,20.0]
[1724012625895,45.0,146.88,146.8,20.0]
[1724012627119,51.8085,146.88,146.8,20.0]
[1724012627327,45.0,146.88,146.8,20.0]
[1724012629315,51.8083,146.88,146.8,20.0]
[1724012629516,45.0,146.88,146.79,21.86]
[1724012629717,22.7494,146.9,146.79,21.86]
[1724012629718,45.0,146.89,146.79,21.86]
[1724012630593,6.8088,146.87,146.79,21.86]
[1724012630811,45.0,146.86,146.79,21.86]
[1724012634314,45.0,146.86,146.81,21.86]
[1724012640429,45.0,146.86,146.82,8.74]
[1724012643247,45.0,146.87,146.82,8.74]
[1724012643456,45.0,146.88,146.82,8.74]
[1724012643939,45.0,146.88,146.74,15.8115]
[1724012643940,52.12251035,146.88,146.8,8.74]
[1724012644267,58.93091035,146.88,146.8,8.74]
[1724012644969,15.7613,146.86,146.74,21.8784]
[1724012645263,51.1555,146.85,146.77,8.74]
[1724012645769,57.9655,146.85,146.79,8.74]
[1724012646066,51.1555,146.85,146.79,8.74]
[1724012648180,45.0,146.85,146.81,8.74]
[1724012652050,45.0,146.85,146.79,8.74]
[1724012653080,6.8104,146.84,146.74,21.8784]
[1724012653368,52.42913086,146.83,146.76,8.74]
[1724012653574,45.0,146.83,146.76,8.74]
[1724012654974,57.9661,146.83,146.76,8.74]
[1724012655179,7.43010264,146.82,146.76,8.74]
[1724012655370,51.1555,146.83,146.76,8.74]
[1724012655371,52.43004238,146.81,146.76,8.74]
[1724012655567,58.28076147,146.83,146.76,8.74]
[1724012655773,7.43000374,146.82,146.76,8.74]
[1724012655961,52.43000374,146.81,146.76,8.74]
[1724012656161,58.28076147,146.83,146.76,8.74]
[1724012656362,7.43014854,146.82,146.76,8.74]
[1724012656566,52.43014854,146.81,146.76,8.74]
[1724012656763,45.0,146.8,146.76,8.74]
[1724012656952,45.0,146.8,146.74,8.74]
[1724012667585,45.0,146.8,146.7,22.4384]
[1724012667586,6.1555,146.83,146.76,8.74]
[1724012668679,45.0,146.82,146.76,8.74]
[1724012669094,45.0,146.82,146.74,8.74]
[1724012669301,51.8111,146.82,146.74,8.74]
[1724012669478,7.43057146,146.81,146.74,8.74]
[1724012669675,45.0,146.8,146.74,8.74]
[1724012670103,45.0,146.81,146.74,8.74]
[1724012672696,51.8116,146.81,146.74,8.74]
[1724012672909,30.25484619,146.8,146.71,8.74]
[1724012673199,45.0,146.79,146.72,20.0]
[1724012673890,45.0,146.79,146.73,8.74]
[1724012679081,45.0,146.79,146.72,20.0]
[1724012679384,45.0,146.79,146.71,20.0]
[1724012681192,52.12182697,146.79,146.71,20.0]
[1724012682997,32.0815,146.77,146.65,15.3319]
[1724012683199,52.43187379,146.76,146.67,8.74]
[1724012683402,45.0,146.76,146.67,8.74]
[1724012683902,7.43343138,146.75,146.67,8.74]
[1724012684099,45.0,146.74,146.67,8.74]
[1724012684311,45.0,146.76,146.68,20.0]
[1724012684696,7.43364129,146.75,146.68,20.0]
[1724012684999,45.0,146.74,146.68,20.0]
[1724012685185,51.8139,146.76,146.68,20.0]
[1724012685586,7.43364129,146.75,146.68,20.0]
[1724012685812,45.0,146.74,146.68,20.0]
[1724012686278,45.0,146.75,146.68,20.0]
[1724012689305,45.0,146.75,146.71,8.74]
[1724012689509,16.5278,146.77,146.71,8.74]
[1724012689510,45.0,146.76,146.71,8.74]
[1724012698417,6.3151,146.78,146.71,8.74]
[1724012698760,45.0,146.77,146.71,8.74]
[1724012699017,45.0,146.78,146.71,8.74]
[1724012700398,7.43183535,146.77,146.71,8.74]
[1724012700600,45.0,146.78,146.71,8.74]
[1724012700816,45.0,146.78,146.7,15.696]
[1724012700817,7.43183112,146.77,146.7,15.696]
[1724012700996,52.43183112,146.76,146.7,24.436]
[1724012701200,45.0,146.75,146.7,24.436]
[1724012701418,51.813,146.78,146.7,24.436]
[1724012701706,7.43265907,146.77,146.7,24.436]
[1724012701918,52.43265907,146.76,146.7,24.436]
[1724012702100,51.813,146.78,146.7,24.436]
[1724012702306,7.43270523,146.77,146.7,24.436]
[1724012702513,52.43270523,146.76,146.7,24.436]
[1724012702799,45.0,146.75,146.7,24.436]
[1724012703007,51.813,146.78,146.7,24.436]
[1724012703201,7.43269333,146.77,146.7,24.436]
[1724012703424,52.43269333,146.76,146.7,24.436]
[1724012703597,51.813,146.78,146.7,24.436]
[1724012703816,7.4322652,146.77,146.7,24.436]
[1724012704120,45.0,146.76,146.7,24.436]
[1724012704309,51.813,146.78,146.7,24.436]
[1724012704614,7.43222125,146.77,146.7,24.436]
[1724012704936,45.0,146.76,146.7,24.436]
[1724012705126,45.0,146.77,146.7,24.436]
[1724012708949,45.0,146.78,146.72,8.74]
[1724012709233,7.43175679,146.77,146.72,8.74]
[1724012709432,45.0,146.78,146.72,8.74]
[1724012709633,7.43175679,146.77,146.72,8.74]
[1724012709835,45.0,146.78,146.72,8.74]
[1724012710013,7.43187934,146.77,146.72,8.74]
[1724012710213,45.0,146.78,146.72,8.74]
[1724012710422,7.4318465,146.77,146.72,8.74]
[1724012710637,45.0,146.76,146.7,24.436]
[1724012710934,51.8129,146.78,146.7,24.436]
[1724012711118,51.8129,146.78,146.68,28.74]
[1724012711119,16.17254235,146.77,146.68,28.74]
[1724012711325,52.43254235,146.76,146.68,28.74]
[1724012711527,7.43254235,146.75,146.68,28.74]
[1724012711731,45.0,146.74,146.68,20.0]
[1724012711934,45.0,146.74,146.67,20.0]
[1724012712114,7.43210629,146.73,146.67,20.0]
[1724012712319,45.0,146.72,146.67,20.0]
[1724012712741,45.0,146.73,146.67,20.0]
[1724012713229,7.43156784,146.72,146.67,20.0]
[1724012713539,45.0,146.73,146.67,20.0]
[1724012713732,7.4319185,146.72,146.67,20.0]
[1724012713930,45.0,146.73,146.67,20.0]
[1724012714139,7.4320335,146.72,146.67,20.0]
[1724012714323,45.0,146.73,146.67,20.0]
[1724012714524,7.4320335,146.72,146.67,20.0]
[1724012714720,45.0,146.73,146.67,20.0]
[1724012715036,7.43224405,146.72,146.62,22.4471]
[1724012715245,43.1607,146.76,146.62,22.4471]
[1724012715246,6.8166,146.7,146.62,22.4471]
[1724012715421,6.8166,146.7,146.62,31.1871]
[1724012715422,52.43159466,146.69,146.62,31.1871]
[1724012715618,45.0,146.69,146.62,31.1871]
[1724012717036,45.0,146.7,146.63,20.0]
[1724012717368,7.43019512,146.69,146.63,20.0]
[1724012717647,45.0,146.68,146.63,20.0]
[1724012721323,45.0,146.68,146.62,22.4471]
[1724012721524,51.8171,146.69,146.62,22.4471]
[1724012721841,51.8171,146.69,146.62,15.9734]
[1724012723168,51.8171,146.69,146.59,15.5151]
[1724012723169,6.818,146.67,146.59,15.5151]
[1724012723453,7.1284193,146.68,146.59,15.5151]
[1724012723454,45.0,146.66,146.59,24.2551]
[1724012723817,7.1284193,146.68,146.59,24.2551]
[1724012723818,45.0,146.67,146.59,24.2551]
[1724012724618,51.8181,146.67,146.6,20.0]
[1724012726642,60.5581,146.67,146.6,20.0]
[1724012726840,6.8186,146.66,146.59,15.5151]
[1724012727144,45.0,146.65,146.59,15.5151]
[1724012727524,15.5581,146.67,146.59,15.5151]
[1724012727525,45.0,146.66,146.59,15.5151]
[1724012730031,45.0,146.66,146.59,24.2551]
[1724012733538,52.1265702,146.66,146.59,24.2551]
[1724012734662,52.1265702,146.66,146.59,15.5151]
[1724012743475,58.9450702,146.66,146.59,15.5151]
[1724012743651,15.559,146.65,146.59,15.5151]
[1724012743851,45.0,146.64,146.58,6.6393]
[1724012744046,45.0,146.64,146.56,15.8043]
[1724012744247,52.1271071,146.64,146.56,15.8043]
[1724012744551,8.74,146.61,146.53,15.8043]
[1724012744761,45.0,146.6,146.53,15.8043]
[1724012745472,45.0,146.6,146.52,0.8580806]
[1724012746549,45.0,146.6,146.52,20.8580806]
[1724012747247,8.74,146.57,146.52,0.8580806]
[1724012747750,45.0,146.56,146.52,0.8580806]
[1724012749371,51.8232,146.56,146.52,0.8580806]
[1724012750370,45.0,146.56,146.52,0.8580806]
[1724012752674,51.8231,146.56,146.52,0.8580806]
[1724012752865,45.0,146.56,146.52,0.8580806]
[1724012754585,7.13046069,146.55,146.52,0.8580806]
[1724012754770,45.0,146.54,146.52,0.8580806]
[1724012757774,45.0,146.54,146.46,18.8580806]
[1724012757975,45.0,146.54,146.48,8.74]
[1724012759189,7.13046069,146.55,146.48,8.74]
[1724012759478,37.2949,146.59,146.48,8.74]
[1724012759788,7.12948125,146.58,146.48,8.74]
[1724012760079,7.12948125,146.58,146.49,20.0]
[1724012760683,45.0,146.57,146.49,20.0]
[1724012765262,45.0,146.57,146.48,8.74]
[1724012765674,45.0,146.57,146.49,20.0]
[1724012767576,53.74,146.57,146.49,20.0]
[1724012767769,8.74,146.55,146.45,15.8043]
[1724012767972,45.0,146.54,146.46,28.74]
[1724012769790,45.0,146.54,146.45,24.5443]
[1724012769996,16.072,146.53,146.45,24.5443]
[1724012770289,45.0,146.52,146.45,24.5443]
[1724012771072,45.0,146.52,146.46,20.0]
[1724012771791,45.0,146.52,146.41,22.6903]
[1724012771792,45.0,146.52,146.44,8.74]
[1724012771992,45.0,146.52,146.45,20.0]
[1724012773674,16.072,146.53,146.46,8.74]
[1724012773877,13.24850004,146.54,146.48,8.74]
[1724012774075,13.24850004,146.54,146.45,20.0]
[1724012774076,16.072,146.57,146.5,8.74]
[1724012774285,23.1993315,146.57,146.5,8.74]
[1724012774993,23.1993315,146.57,146.46,22.6903]
[1724012775202,23.1993315,146.57,146.48,8.74]
[1724012775379,23.1993315,146.57,146.49,20.0]
[1724012775574,45.0,146.56,146.49,20.0]
[1724012780602,23.1993315,146.57,146.49,20.0]
[1724012780603,7.1273315,146.57,146.52,8.74]
[1724012780909,16.3719,146.61,146.54,8.74]
[1724012782018,16.3719,146.61,146.56,8.74]
[1724012783012,45.0,146.6,146.56,8.74]
[1724012783194,16.3719,146.61,146.56,8.74]
[1724012783698,13.41289697,146.62,146.56,8.74]
[1724012783699,6.2873,146.62,146.56,8.74]
[1724012784713,45.0,146.61,146.56,8.74]
[1724012785991,6.8218,146.59,146.48,22.3899]
[1724012786195,53.74,146.58,146.48,31.1299]
[1724012786394,60.5622,146.58,146.48,24.5725]
[1724012787406,51.8222,146.58,146.5,8.74]
[1724012788324,45.0,146.58,146.5,8.74]
[1724012789016,45.0,146.58,146.48,15.8325]
[1724012789017,45.0,146.58,146.52,8.74]
[1724012789193,23.1932,146.6,146.52,8.74]
[1724012789194,45.0,146.59,146.52,8.74]
[1724012794332,60.86582809,146.59,146.5,8.8538034]
[1724012794499,60.86582809,146.59,146.51,20.0]
[1724012799024,52.12582809,146.59,146.52,8.74]
[1724012801305,6.3234,146.56,146.5,0.1138034]
[1724012801512,45.0,146.55,146.5,0.1138034]
[1724012805816,52.12435244,146.55,146.5,0.1138034]
[1724012811518,7.12435244,146.55,146.5,0.1138034]
[1724012811712,6.3234,146.56,146.5,0.1138034]
[1724012813526,6.3234,146.56,146.51,8.74]
[1724012816333,6.3234,146.56,146.5,0.1138034]
[1724012821315,45.0,146.55,146.5,0.1138034]
[1724012822428,60.9562,146.55,146.5,0.1138034]
[1724012827650,15.9562,146.55,146.5,0.1138034]
[1724012827849,15.9562,146.55,146.51,8.74]
[1724012828143,22.778,146.59,146.51,8.74]
[1724012828447,22.778,146.59,146.52,1.36478375]
[1724012828448,29.90285062,146.59,146.52,1.36478375]
[1724012829353,45.0,146.58,146.51,8.74]
[1724012830679,51.8222,146.58,146.5,0.1138034]
[1724012830956,51.8222,146.58,146.5,20.1138034]
[1724012833757,45.0,146.58,146.51,8.74]
[1724012834630,23.08105062,146.59,146.53,8.74]
[1724012835950,45.0,146.58,146.53,8.74]
[1724012836454,23.08105062,146.59,146.53,8.74]
[1724012836649,15.9562,146.59,146.53,8.74]
[1724012837455,15.9562,146.59,146.55,8.74]
[1724012842153,15.9562,146.59,146.53,8.74]
[1724012842343,15.9562,146.59,146.5,8.8538034]
[1724012842344,53.74,146.58,146.5,8.8538034]
[1724012842754,53.74,146.58,146.5,0.1138034]
[1724012842969,8.74,146.56,146.5,0.1138034]
[1724012843154,45.0,146.55,146.5,0.1138034]
[1724012843463,51.1603,146.55,146.5,0.1138034]
[1724012848462,6.1603,146.55,146.5,0.1138034]
[1724012849939,6.1603,146.55,146.51,8.74]
[1724012850282,7.12647466,146.58,146.51,8.74]
[1724012850440,45.0,146.57,146.51,8.74]
[1724012851841,22.1165,146.59,146.53,8.74]
[1724012852053,45.0,146.58,146.53,8.74]
[1724012852542,45.0,146.58,146.51,8.74]
[1724012853304,51.8222,146.58,146.5,0.1138034]
[1724012853568,8.74,146.57,146.5,20.1138034]
[1724012853744,45.0,146.56,146.5,20.1138034]
[1724012857571,37.6783,146.59,146.51,8.74]
[1724012857871,45.0,146.58,146.51,8.74]
[1724012862459,52.12635968,146.58,146.51,8.74]
[1724012863878,58.94855968,146.58,146.5,20.1138034]
[1724012864063,8.74,146.57,146.5,20.1138034]
[1724012864263,45.0,146.56,146.5,20.1138034]
[1724012865799,7.12635968,146.58,146.5,20.1138034]
[1724012865967,45.0,146.57,146.5,20.1138034]
[1724012871970,45.0,146.57,146.5,0.1138034]
[1724012872178,45.0,146.57,146.5,20.1138034]
[1724012884115,8.74,146.54,146.5,0.1138034]
[1724012884403,51.8246,146.53,146.5,0.1138034]
[1724012886694,45.0,146.53,146.5,0.1138034]
[1724012887900,23.71157933,146.56,146.5,0.1138034]
[1724012888109,45.0,146.55,146.5,0.1138034]
[1724012891796,7.12877933,146.56,146.5,0.1138034]
[1724012891991,7.12877933,146.56,146.52,8.74]
[1724012892194,23.4044,146.6,146.52,8.74]
[1724012892397,7.12878638,146.59,146.52,8.74]
[1724012893636,7.12878638,146.59,146.53,8.74]
[1724012894518,45.0,146.58,146.53,8.74]